{"text_format":"3","workbook":"xlsx","n_sheets":1,"sheets":["Rechnungsnachverfolgung"],"not_rendered":{"defined_names":2},"read":"whole","date_system":"1900"}

{"sheet":"Rechnungsnachverfolgung","index":0,"n_rows":18,"n_cols":10,"rows_kept":18,"merged":[[0,1,0,3]]}
[null,"Rechnungsnachverfolgung"]
[]
[null,"Rechnungs-Nr.","Datum","Zahlung fällig","Kundenname","Betrag ","Mahngebühr ","Gezahlte Gesamtsummen","Zahlungsdatum","Offen"]
[null,1001,{"$f":"DATE(YEAR(TODAY()),1,15)","v":"2019-01-15"},{"$f":"DATE(YEAR(TODAY()),2,15)","v":"2019-02-15"},"Schmitz",{"v":20199,"d":"20,199.00 €"},{"$f":"IF(Rechnungsnachverfolgung!$D4>=Rechnungsnachverfolgung!$I4,,5)","v":{"v":0,"d":"0.00 €"}},{"v":20199,"d":"20,199.00 €"},{"$f":"DATE(YEAR(TODAY()),2,1)","v":"2019-02-01"},{"$f":"Rechnungsnachverfolgung!$F4-Rechnungsnachverfolgung!$H4+Rechnungsnachverfolgung!$G4","v":{"v":0,"d":"0.00 €"}}]
[null,1002,{"$f":"DATE(YEAR(TODAY()),2,11)","v":"2019-02-11"},{"$f":"DATE(YEAR(TODAY()),4,1)","v":"2019-04-01"},"Schmitz",{"v":15700,"d":"15,700.00 €"},{"$f":"IF(Rechnungsnachverfolgung!$D5>=Rechnungsnachverfolgung!$I5,,5)","v":{"v":5,"d":"5.00 €"}},{"v":7500,"d":"7,500.00 €"},{"$f":"DATE(YEAR(TODAY()),4,10)","v":"2019-04-10"},{"$f":"Rechnungsnachverfolgung!$F5-Rechnungsnachverfolgung!$H5+Rechnungsnachverfolgung!$G5","v":{"v":8205,"d":"8,205.00 €"}}]
[null,1003,{"$f":"DATE(YEAR(TODAY()),2,17)","v":"2019-02-17"},{"$f":"DATE(YEAR(TODAY()),4,15)","v":"2019-04-15"},"Contoso",{"v":13799,"d":"13,799.00 €"},{"$f":"IF(Rechnungsnachverfolgung!$D6>=Rechnungsnachverfolgung!$I6,,5)","v":{"v":0,"d":"0.00 €"}},{"v":5500,"d":"5,500.00 €"},{"$f":"DATE(YEAR(TODAY()),3,17)","v":"2019-03-17"},{"$f":"Rechnungsnachverfolgung!$F6-Rechnungsnachverfolgung!$H6+Rechnungsnachverfolgung!$G6","v":{"v":8299,"d":"8,299.00 €"}}]
[null,1004,{"$f":"DATE(YEAR(TODAY()),3,8)","v":"2019-03-08"},{"$f":"DATE(YEAR(TODAY()),4,1)","v":"2019-04-01"},"Jonathan Haas",{"v":120,"d":"120.00 €"},{"$f":"IF(Rechnungsnachverfolgung!$D7>=Rechnungsnachverfolgung!$I7,,5)","v":{"v":5,"d":"5.00 €"}},{"v":75,"d":"75.00 €"},{"$f":"DATE(YEAR(TODAY()),4,16)","v":"2019-04-16"},{"$f":"Rechnungsnachverfolgung!$F7-Rechnungsnachverfolgung!$H7+Rechnungsnachverfolgung!$G7","v":{"v":50,"d":"50.00 €"}}]
[null,1005,{"$f":"DATE(YEAR(TODAY()),3,17)","v":"2019-03-17"},{"$f":"DATE(YEAR(TODAY()),4,30)","v":"2019-04-30"},"Contoso",{"v":150,"d":"150.00 €"},{"$f":"IF(Rechnungsnachverfolgung!$D8>=Rechnungsnachverfolgung!$I8,,5)","v":{"v":0,"d":"0.00 €"}},{"v":75,"d":"75.00 €"},{"$f":"DATE(YEAR(TODAY()),4,11)","v":"2019-04-11"},{"$f":"Rechnungsnachverfolgung!$F8-Rechnungsnachverfolgung!$H8+Rechnungsnachverfolgung!$G8","v":{"v":75,"d":"75.00 €"}}]
[null,1006,{"$f":"DATE(YEAR(TODAY()),4,1)","v":"2019-04-01"},{"$f":"DATE(YEAR(TODAY()),6,1)","v":"2019-06-01"},"Stefanie Born",{"v":1475,"d":"1,475.00 €"},{"$f":"IF(Rechnungsnachverfolgung!$D9>=Rechnungsnachverfolgung!$I9,,5)","v":{"v":0,"d":"0.00 €"}},{"v":1200,"d":"1,200.00 €"},{"$f":"DATE(YEAR(TODAY()),4,28)","v":"2019-04-28"},{"$f":"Rechnungsnachverfolgung!$F9-Rechnungsnachverfolgung!$H9+Rechnungsnachverfolgung!$G9","v":{"v":275,"d":"275.00 €"}}]
[{"$nulls":6},{"$f":"IF(Rechnungsnachverfolgung!$D10>=Rechnungsnachverfolgung!$I10,,5)","v":{"v":0,"d":"0.00 €"}},null,null,{"$f":"Rechnungsnachverfolgung!$F10-Rechnungsnachverfolgung!$H10+Rechnungsnachverfolgung!$G10","v":{"v":0,"d":"0.00 €"}}]
[{"$nulls":6},{"$f":"IF(Rechnungsnachverfolgung!$D11>=Rechnungsnachverfolgung!$I11,,5)","v":{"v":0,"d":"0.00 €"}},null,null,{"$f":"Rechnungsnachverfolgung!$F11-Rechnungsnachverfolgung!$H11+Rechnungsnachverfolgung!$G11","v":{"v":0,"d":"0.00 €"}}]
[{"$nulls":6},{"$f":"IF(Rechnungsnachverfolgung!$D12>=Rechnungsnachverfolgung!$I12,,5)","v":{"v":0,"d":"0.00 €"}},null,null,{"$f":"Rechnungsnachverfolgung!$F12-Rechnungsnachverfolgung!$H12+Rechnungsnachverfolgung!$G12","v":{"v":0,"d":"0.00 €"}}]
[{"$nulls":6},{"$f":"IF(Rechnungsnachverfolgung!$D13>=Rechnungsnachverfolgung!$I13,,5)","v":{"v":0,"d":"0.00 €"}},null,null,{"$f":"Rechnungsnachverfolgung!$F13-Rechnungsnachverfolgung!$H13+Rechnungsnachverfolgung!$G13","v":{"v":0,"d":"0.00 €"}}]
[{"$nulls":6},{"$f":"IF(Rechnungsnachverfolgung!$D14>=Rechnungsnachverfolgung!$I14,,5)","v":{"v":0,"d":"0.00 €"}},null,null,{"$f":"Rechnungsnachverfolgung!$F14-Rechnungsnachverfolgung!$H14+Rechnungsnachverfolgung!$G14","v":{"v":0,"d":"0.00 €"}}]
[{"$nulls":6},{"$f":"IF(Rechnungsnachverfolgung!$D15>=Rechnungsnachverfolgung!$I15,,5)","v":{"v":0,"d":"0.00 €"}},null,null,{"$f":"Rechnungsnachverfolgung!$F15-Rechnungsnachverfolgung!$H15+Rechnungsnachverfolgung!$G15","v":{"v":0,"d":"0.00 €"}}]
[{"$nulls":6},{"$f":"IF(Rechnungsnachverfolgung!$D16>=Rechnungsnachverfolgung!$I16,,5)","v":{"v":0,"d":"0.00 €"}},null,null,{"$f":"Rechnungsnachverfolgung!$F16-Rechnungsnachverfolgung!$H16+Rechnungsnachverfolgung!$G16","v":{"v":0,"d":"0.00 €"}}]
[{"$nulls":6},{"$f":"IF(Rechnungsnachverfolgung!$D17>=Rechnungsnachverfolgung!$I17,,5)","v":{"v":0,"d":"0.00 €"}},null,null,{"$f":"Rechnungsnachverfolgung!$F17-Rechnungsnachverfolgung!$H17+Rechnungsnachverfolgung!$G17","v":{"v":0,"d":"0.00 €"}}]
[null,"Ergebnis",{"$nulls":3},{"$f":"SUBTOTAL(109,invoices[[Betrag ]])","v":{"v":51443,"d":"51,443.00 €"}},null,{"$f":"SUBTOTAL(109,invoices[Gezahlte Gesamtsummen])","v":{"v":34549,"d":"34,549.00 €"}},null,{"$f":"SUBTOTAL(109,invoices[Offen])","v":{"v":16904,"d":"16,904.00 €"}}]